fUST/lending_fUST_20250716
["ID","MTS","AMOUNT","RATE_DAILY","PERIOD"]
[372340471,1752601837413,-153.0,0.00023808,2]
[372340472,1752601837423,-177.9926445,0.00023808,2]
[372340473,1752601837433,-576.7692041,0.00023808,2]
[372340474,1752601837442,-575.8257694,0.00023808,2]
[372340475,1752601837452,-153.0,0.00023808,2]
[372340476,1752601837462,-153.0,0.00023808,2]
[372340477,1752601837472,-168.0,0.00023809,2]
[372340478,1752601837481,-257.204142,0.00023833,7]
[372340479,1752601837491,-151.0,0.00023833,7]
[372340480,1752601837500,-430.767542,0.00023833,7]
[372340481,1752601837510,-430.767542,0.00023833,7]
[372340482,1752601837520,-724.73,0.00023833,2]
[372340483,1752601837529,-722.4,0.00023833,2]
[372340484,1752601837539,-871.14,0.00023833,2]
[372340485,1752601837549,-726.44,0.00023833,2]
[372340486,1752601837558,-794.0,0.00023833,2]
[372340487,1752601837568,-151.0,0.00023835,7]
[372340488,1752601837578,-151.0,0.00023835,7]
[372340489,1752601837588,-1866.05105902,0.00023837,2]
[372340490,1752601837598,-150.198901,0.00023841,20]
[372340491,1752601837608,-500.0,0.00023874,2]
[372340492,1752601837617,-223.0315306,0.00023884,2]
[372340493,1752601837627,-560.0,0.00023886,2]
[372340494,1752601837636,-151.0,0.00023941,7]
[372340495,1752601837646,-151.0,0.00023942,7]
[372340496,1752601837655,-183.79178,0.00023942,7]
[372340497,1752601837664,-183.79178,0.00023942,7]
[372340498,1752601837674,-165.307052,0.00023942,7]
[372340499,1752601837683,-151.0,0.00023942,7]
[372340500,1752601837692,-165.307052,0.00023942,7]
[372340501,1752601837702,-150.198901,0.00023974,30]
[372340502,1752601837711,-151.0,0.00023984,6]
[372340503,1752601837720,-525.51022752,0.00024,7]
[372340504,1752601837730,-274.08036601,0.00024,7]
[372340505,1752601837739,-230.76969291,0.00024,7]
[372340506,1752601837750,-215.50840239,0.00024,7]
[372340507,1752601837759,-332.5781634,0.00024,14]
[372340508,1752601837769,-1692.144531,0.00024,2]
[372340509,1752601837779,-10140.16076514,0.00024,2]
[372340510,1752601837788,-161.76290094,0.00024,2]
[372340511,1752601837798,-453.44131553,0.00024,2]
[372340512,1752601837807,-178.82698961,0.00024,7]
[372340513,1752601837817,-685.7,0.00024,14]
[372340514,1752601837826,-1732.56,0.00024,7]
[372340515,1752601837836,-520.84375,0.00024,7]
[372340516,1752601837846,-259.36333,0.00024005,7]
[372340517,1752601837858,-310.07137699,0.00024023,2]
[372340518,1752601837869,-168.0,0.00024044,2]
[372340519,1752601837879,-150.198901,0.00024053,10]
[372340520,1752601837890,-500.0,0.00024067,2]
[372340522,1752601837899,-168.0,0.00024104,2]
[372340524,1752601837908,-724.73,0.00024107,2]
[372340526,1752601837919,-722.4,0.00024107,2]
[372340527,1752601837928,-871.14,0.00024107,2]
[372340528,1752601837937,-726.44,0.00024107,2]
[372340529,1752601837947,-794.0,0.00024107,2]
[372340530,1752601837957,-151.0,0.00024112,7]
[372340531,1752601837966,-151.0,0.00024112,7]
[372340532,1752601837976,-329.84597275,0.00024116,2]
[372340533,1752601837986,-159.0,0.00024164,7]
[372340534,1752601837995,-15669.94,0.000242,7]
[372340535,1752601838005,-151.0,0.000242,7]
[372340536,1752601838015,-151.0,0.000242,7]
[372340537,1752601838024,-258.939145,0.000242,7]
[372340538,1752601838034,-258.939145,0.000242,7]
[372340539,1752601838043,-151.0,0.000243,6]
[372340540,1752601838053,-151.0,0.00024334,7]
[372340541,1752601838063,-151.0,0.00024334,7]
[372340542,1752601838073,-183.79178,0.00024334,7]
[372340543,1752601838082,-183.79178,0.00024334,7]
[372340544,1752601838092,-151.0,0.00024334,7]
[372340545,1752601838101,-165.307052,0.00024334,7]
[372340546,1752601838111,-165.307052,0.00024334,7]
[372340547,1752601838124,-150.198901,0.00024339,20]
[372340548,1752601838133,-724.73,0.00024381,2]
[372340549,1752601838143,-722.4,0.00024381,2]
[372340550,1752601838153,-871.14,0.00024381,2]
[372340551,1752601838163,-726.44,0.00024381,2]
[372340552,1752601838173,-794.0,0.00024381,2]
[372340553,1752601838182,-151.0,0.00024383,7]
[372340554,1752601838193,-151.0,0.00024383,7]
[372340555,1752601838202,-168.0,0.00024385,2]
[372340556,1752601838212,-2010.35104184,0.00024396,3]
[372340558,1752601838222,-230.76969291,0.000244,7]
[372340560,1752601838231,-151.0,0.000244,7]
[372340562,1752601838241,-151.0,0.000244,7]
[372340564,1752601838251,-76980.98637407,0.00024404,2]
[372340566,1752601838261,-660.0,0.00024434,2]
[372340568,1752601838271,-150.198901,0.00024482,30]
[372340570,1752601838281,-168.0,0.00024517,2]
[372340571,1752601838293,-153.80248676,0.00024551,4]
[372340572,1752601838303,-153.80248676,0.00024551,4]
[372340573,1752601838314,-153.80248676,0.00024551,4]
[372340574,1752601838324,-153.8,0.00024551,4]
[372340575,1752601838335,-159.49887516,0.00024551,4]
[372340576,1752601838346,-159.49887516,0.00024551,4]
[372340577,1752601838357,-159.49887516,0.00024551,4]
[372340578,1752601838367,-159.49887516,0.00024551,4]
[372340579,1752601838377,-159.49887516,0.00024551,4]
[372340580,1752601838387,-159.49887516,0.00024551,4]
[372340581,1752601838397,-159.49887516,0.00024551,4]
[372340582,1752601838407,-159.49887516,0.00024551,4]
[372340583,1752601838416,-170.00000004,0.00024551,4]
[372340584,1752601838426,-170.00000004,0.00024551,4]
[372340585,1752601838436,-170.00000004,0.00024551,4]
[372340586,1752601838445,-170.00000004,0.00024551,4]
[372340587,1752601838455,-170.00000004,0.00024551,4]
[372340588,1752601838464,-170.0,0.00024551,4]
[372340589,1752601838473,-158.6666667,0.00024551,4]
[372340590,1752601838483,-158.6666667,0.00024551,4]
[372340591,1752601838492,-158.6666667,0.00024551,4]
[372340592,1752601838502,-158.6666667,0.00024551,4]
[372340593,1752601838511,-158.6666667,0.00024551,4]
[372340594,1752601838520,-158.6666667,0.00024551,4]
[372340595,1752601838530,-158.6666667,0.00024551,4]
[372340596,1752601838540,-158.6666667,0.00024551,4]
[372340597,1752601838549,-158.6666667,0.00024551,4]
[372340598,1752601838558,-158.6666667,0.00024551,4]
[372340599,1752601838568,-158.6666667,0.00024551,4]
[372340600,1752601838578,-158.6666667,0.00024551,4]
[372340601,1752601838587,-158.6666667,0.00024551,4]
[372340602,1752601838597,-158.6666667,0.00024551,4]
[372340603,1752601838607,-170.27239289,0.00024551,2]
[372340604,1752601838617,-168.0,0.00024597,2]
[372340605,1752601838626,-801.87,0.000246,7]
[372340606,1752601838636,-21171.46,0.000246,2]
[372340607,1752601838645,-151.0,0.000246,7]
[372340608,1752601838655,-267.278364,0.000246,7]
[372340609,1752601838664,-151.0,0.000246,7]
[372340610,1752601838673,-430.767542,0.000246,7]
[372340611,1752601838683,-430.767542,0.000246,7]
[372340612,1752601838693,-297.992877,0.0002463,7]
[372340613,1752601838703,-183.79178,0.0002463,7]
[372340614,1752601838713,-183.79178,0.0002463,7]
[372340615,1752601838722,-165.307052,0.0002463,7]
[372340616,1752601838732,-165.307052,0.0002463,7]
[372340617,1752601838742,-168.0,0.00024636,2]
[372340618,1752601838751,-151.0,0.00024641,7]
[372340619,1752601838761,-2226.623,0.00024649,2]
[372340620,1752601838771,-151.0,0.0002465,7]
[372340621,1752601838780,-151.0,0.0002465,7]
[372340622,1752601838790,-258.939145,0.0002465,7]
[372340623,1752601838800,-258.939145,0.0002465,7]
[372340624,1752601838809,-151.0,0.00024651,7]
[372340625,1752601838819,-151.0,0.00024651,7]
[372340627,1752601838829,-151.0,0.00024651,7]
[372340628,1752601838838,-151.0,0.00024651,7]
[372340629,1752601838848,-151.0,0.00024651,7]
[372340630,1752601838859,-430.767542,0.00024651,7]
[372340631,1752601838869,-430.767542,0.00024651,7]
[372340632,1752601838879,-151.0,0.00024651,7]
[372340633,1752601838888,-258.939145,0.00024651,7]
[372340634,1752601838898,-258.939145,0.00024651,7]
[372340635,1752601838907,-183.79178,0.00024651,7]
[372340636,1752601838917,-183.79178,0.00024651,7]
[372340637,1752601838927,-165.307052,0.00024651,7]
[372340638,1752601838937,-165.307052,0.00024651,7]
[372340639,1752601838947,-724.73,0.00024655,2]
[372340640,1752601839163,-722.4,0.00024655,2]
[372340641,1752601839175,-871.14,0.00024655,2]
[372340642,1752601839185,-726.44,0.00024655,2]
[372340643,1752601839194,-794.0,0.00024655,2]
[372340644,1752601839205,-388.71212968,0.00024657,2]
[372340645,1752601839216,-400.0,0.00024658,7]
[372340646,1752601839226,-380.0,0.00024658,2]
[372340647,1752601839235,-200.0,0.00024658,15]
[372340648,1752601839244,-151.0,0.00024658,7]
[372340649,1752601839254,-500.0,0.00024658,2]
[372340650,1752601839263,-500.0,0.0002468,2]
[372340651,1752601839273,-310.07137699,0.00024683,2]
[372340652,1752601839282,-151.0,0.00024684,7]
[372340653,1752601839292,-500.0,0.00024685,2]
[372340654,1752601839301,-168.0,0.00024692,2]
[372340655,1752601839312,-165.0,0.00024712,60]
[372340656,1752601839322,-500.0,0.00024713,2]
[372340657,1752601839331,-407.0,0.0002474,2]
[372340658,1752601839341,-151.0,0.000248,7]
[372340659,1752601839350,-151.0,0.000248,7]
[372340660,1752601839360,-151.0,0.000248,7]
[372340661,1752601839369,-151.0,0.000248,7]
[372340662,1752601839379,-151.0,0.000248,7]
[372340663,1752601839390,-258.939145,0.000248,7]
[372340664,1752601839400,-258.939145,0.000248,7]
[372340665,1752601839410,-183.79178,0.000248,7]
[372340666,1752601839420,-183.791774,0.000248,7]
[372340667,1752601839429,-165.307052,0.000248,7]
[372340668,1752601839439,-165.307062,0.000248,7]
[372340669,1752601839449,-104164.096596,0.000248,2]
[372340670,1752601839459,-159.49,0.000248,4]
[372340671,1752601839470,-158.66,0.000248,4]
[372340672,1752601839481,-1866.05105902,0.00024801,2]
[372340673,1752601839491,-1399.22613057,0.00024801,2]
[372340674,1752601839501,-150.198901,0.00024836,20]
[372340675,1752601839511,-1399.22613052,0.00024861,2]
[372340676,1752601839521,-150.0,0.00024873,2]
[372340677,1752601839531,-75305.37,0.0002489,7]
[372340678,1752601839541,-151.0,0.0002489,7]
[372340679,1752601839551,-151.0,0.0002489,7]
[372340680,1752601839561,-151.0,0.0002489,7]
[372340681,1752601839573,-151.0,0.0002489,7]
[372340682,1752601839583,-151.0,0.0002489,7]
[372340683,1752601839595,-151.0,0.0002489,7]
[372340684,1752601839606,-151.0,0.0002489,7]
[372340685,1752601839617,-151.0,0.0002489,7]
[372340686,1752601839627,-430.767542,0.0002489,7]
[372340687,1752601839637,-430.767542,0.0002489,7]
[372340688,1752601839647,-151.0,0.0002489,7]
[372340689,1752601839658,-258.939145,0.0002489,7]
[372340690,1752601839670,-258.939152,0.0002489,7]
[372340691,1752601839680,-285.31612638,0.0002489,2]
[372340692,1752601839691,-500.0,0.00024899,10]
[372340693,1752601839702,-500.0,0.00024899,10]
[372340694,1752601839712,-500.0,0.00024899,10]
[372340695,1752601839723,-500.0,0.00024899,10]
[372340696,1752601839734,-500.0,0.00024899,10]
[372340697,1752601839744,-500.0,0.00024899,10]
[372340698,1752601839756,-500.0,0.00024899,10]
[372340699,1752601839767,-15000.0,0.000249,6]
[372340700,1752601839778,-151.0,0.000249,7]
[372340701,1752601839788,-151.0,0.000249,7]
[372340702,1752601839800,-151.0,0.000249,7]
[372340703,1752601839813,-151.0,0.000249,7]
[372340704,1752601839823,-151.0,0.000249,7]
[372340705,1752601839834,-151.0,0.000249,7]
[372340707,1752601839844,-151.0,0.000249,7]
[372340708,1752601839855,-430.767542,0.000249,7]
[372340709,1752601839866,-430.767542,0.000249,7]
[372340710,1752601839876,-273059.20688488,0.000249,2]
[372340711,1752601839949,-654.86091982,0.000249,2]
[372340715,1752601840095,142.70439012,0.0002,2]
[372340716,1752601840237,508.54565106,0.0002,2]
[372340718,1752601840541,-260.39393074,0.00021036,2]
[372340719,1752601840551,-160.0,0.00021591,2]
[372340720,1752601840560,-965.92894247,0.0002248,10]
[372341114,1752601932187,2104.1235631,0.00019814,2]
[372341115,1752601933285,224.8770298,0.000273,120]
[372341123,1752602147124,174.612174,0.00019545,2]
[372341124,1752602303012,196.246076,0.00013699,2]
[372341143,1752602540872,460.3047293,0.00019339,2]
[372341167,1752602644464,614.5010759,0.00019271,2]
[372341180,1752602739136,-155.0356885,0.00020171,2]
[372341181,1752602739158,-196.246076,0.00020187,2]
[372341182,1752602739180,-207.4,0.00020259,2]
[372341183,1752602739201,-300.0,0.00020268,2]
[372341184,1752602739223,-300.0,0.00020268,2]
[372341185,1752602739244,-123.4558237,0.00020268,2]
[372341186,1752602759230,-176.5441763,0.00020268,2]
[372341187,1752602759252,-300.0,0.00020268,2]
[372341188,1752602759273,-265.36991802,0.00020268,2]
[372341190,1752602830089,-300.0,0.00020267,2]
[372341191,1752602830111,-334.73867228,0.00020268,2]
[372341192,1752602849135,-599.8914097,0.00020268,2]
[372341193,1752602849157,-300.0,0.00020268,2]
[372341194,1752602849180,-1200.0,0.00020268,2]
[372341195,1752602849206,-460.0,0.00020269,2]
[372341196,1752602849235,-460.0,0.00020269,2]
[372341197,1752602849262,-460.0,0.00020269,2]
[372341198,1752602849285,-460.0,0.00020269,2]
[372341199,1752602849311,-460.0,0.00020269,2]
[372341200,1752602849335,-460.44533274,0.00020269,2]
[372341201,1752602849361,-460.0,0.00020269,2]
[372341202,1752602849385,-592.01609432,0.00020269,10]
[372341203,1752602849409,-225.65865543,0.00020269,2]
[372341204,1752602849435,-263.57426695,0.00020269,2]
[372341205,1752602849460,-632.26,0.00020269,2]
[372341206,1752602849489,-416.53420694,0.00020269,2]
[372341208,1752602887538,5941.66673064,0.00019476,2]
[372341209,1752602887562,10000.0,0.00019476,2]
[372341210,1752602887585,8958.33326936,0.00019476,2]
[372341211,1752602892093,444.554301,0.00019476,2]
[372341212,1752602935030,223.682583,0.00019662,2]
[372341213,1752602935388,164.59302738,0.00019663,2]
[372341265,1752603032559,-186.32592442,0.0002017,2]
[372341267,1752603032574,-300.0,0.00020268,2]
[372341269,1752603032584,-1094.0,0.00020268,2]
[372341271,1752603032594,-43.46579306,0.00020269,2]
[372341273,1752603032604,-737.21,0.00020269,2]
[372341275,1752603032614,-460.0,0.00020269,2]
[372341276,1752603032623,-269.39423654,0.00020269,2]
[372341277,1752603032642,-190.60576346,0.00020269,2]
[372341278,1752603032652,-396.39423654,0.00020269,2]
[372341280,1752603032665,-63.60576346,0.00020269,2]
[372341281,1752603032674,-460.0,0.00020269,2]
[372341283,1752603032683,-93.23623654,0.00020269,2]
[372341284,1752603032704,-367.59117734,0.00020269,2]
[372341285,1752603032714,-501.17767796,0.00020269,2]
[372341286,1752603032724,-460.0,0.00020269,2]
[372341287,1752603032734,-461.43341498,0.00020269,2]
[372341288,1752603032744,-596.17332895,0.00020269,2]
[372341289,1752603032753,-460.0,0.00020269,2]
[372341290,1752603032763,-460.0,0.00020269,2]
[372341291,1752603032773,-460.0,0.00020269,2]
[372341292,1752603032783,-90.35512021,0.00020269,2]
[372341293,1752603032795,-369.64487979,0.00020269,2]
[372341294,1752603032804,-460.0,0.00020269,2]
[372341295,1752603032815,-460.0,0.00020269,2]
[372341296,1752603032824,-460.0,0.00020269,2]
[372341297,1752603032836,-460.0,0.00020269,2]
[372341298,1752603032846,-460.0,0.00020269,2]
[372341299,1752603032856,-460.0,0.00020269,2]
[372341300,1752603032865,-460.0,0.00020269,2]
[372341301,1752603032874,-460.55102247,0.00020269,2]
[372341302,1752603032885,-82.87517021,0.00020269,2]
[372341332,1752603038511,-417.12482979,0.00020269,2]
[372341334,1752603038521,-460.0,0.00020269,2]
[372341336,1752603038530,-460.0,0.00020269,2]
[372341338,1752603038541,-460.0,0.00020269,2]
[372341340,1752603038551,-460.0,0.00020269,2]
[372341342,1752603038560,-460.0,0.00020269,2]
[372341344,1752603038572,-460.0,0.00020269,2]
[372341346,1752603038582,-460.0,0.00020269,2]
[372341348,1752603038591,-460.0,0.00020269,2]
[372341351,1752603038608,-460.0,0.00020269,2]
[372341353,1752603038620,-460.0,0.00020269,2]
[372341355,1752603038630,-460.0,0.00020269,2]
[372341357,1752603038639,-460.0,0.00020269,2]
[372341359,1752603038648,-460.0,0.00020269,2]
[372341361,1752603038658,-460.0,0.00020269,2]
[372341381,1752603038833,-605.92,0.00020269,2]
[372341384,1752603038850,-460.0,0.00020269,2]
[372341386,1752603038860,-460.0,0.00020269,2]
[372341388,1752603038870,-460.0,0.00020269,2]
[372341390,1752603038879,-460.0,0.00020269,2]
[372341392,1752603038889,-500.0,0.00020269,2]
[372341394,1752603038897,-500.0,0.00020269,2]
[372341396,1752603038907,-194.97801699,0.00020269,2]
[372341398,1752603038916,-572.44,0.00020269,2]
[372341400,1752603038925,-211.04222366,0.0002027,2]
[372341402,1752603038935,-460.0,0.0002027,2]
[372341404,1752603038944,-460.0,0.0002027,2]
[372341406,1752603038953,-460.0,0.0002027,2]
[372341408,1752603038963,-460.0,0.0002027,2]
[372341410,1752603038972,-229.25,0.0002027,2]
[372341412,1752603038982,-460.0,0.0002027,2]
[372341414,1752603038991,-460.0,0.0002027,2]
[372341416,1752603039000,-460.0,0.0002027,2]
[372341418,1752603039009,-460.0,0.0002027,2]
[372341420,1752603039018,-252.28445255,0.0002027,2]
[372341422,1752603039027,-460.0,0.0002027,2]
[372341424,1752603039037,-460.0,0.0002027,2]
[372341426,1752603039046,-460.0,0.0002027,2]
[372341428,1752603039056,-460.0,0.0002027,2]
[372341430,1752603039065,-543.0,0.0002027,2]
[372341432,1752603039075,-460.0,0.0002027,2]
[372341454,1752603039293,-460.0,0.0002027,2]
[372341456,1752603039302,-460.0,0.0002027,2]
[372341458,1752603039312,-460.0,0.0002027,2]
[372341460,1752603039323,-460.0,0.0002027,2]
[372341462,1752603039332,-460.0,0.0002027,2]
[372341464,1752603039341,-460.0,0.0002027,2]
[372341466,1752603039351,-460.0,0.0002027,2]
[372341468,1752603039360,-460.0,0.0002027,2]
[372341471,1752603039369,-460.0,0.0002027,2]
[372341473,1752603039385,-460.0,0.0002027,2]
[372341475,1752603039394,-460.0,0.0002027,2]
[372341477,1752603039404,-460.0,0.0002027,2]
[372341479,1752603039414,-460.0,0.0002027,2]
[372341481,1752603039423,-460.0,0.0002027,2]
[372341483,1752603039432,-460.0,0.0002027,2]
[372341485,1752603039441,-460.0,0.0002027,2]
[372341487,1752603039451,-460.0,0.0002027,2]
[372341489,1752603039460,-460.0,0.0002027,2]
[372341491,1752603039469,-460.0,0.0002027,2]
[372341493,1752603039478,-460.0,0.0002027,2]
[372341495,1752603039488,-460.0,0.0002027,2]
[372341497,1752603039502,-460.0,0.0002027,2]
[372341499,1752603039512,-460.0,0.0002027,2]
[372341501,1752603039521,-460.0,0.0002027,2]
[372341503,1752603039531,-460.0,0.0002027,2]
[372341504,1752603039541,-460.0,0.0002027,2]
[372341506,1752603039551,-460.0,0.0002027,2]
[372341508,1752603039560,-460.0,0.0002027,2]
[372341510,1752603039569,-460.0,0.0002027,2]
[372341512,1752603039579,-462.92608621,0.0002027,2]
[372341514,1752603039590,-460.0,0.0002027,2]
[372341516,1752603039600,-500.0,0.0002027,2]
[372341518,1752603039609,-460.0,0.0002027,2]
[372341520,1752603039619,-460.0,0.0002027,2]
[372341522,1752603039629,-460.0,0.0002027,2]
[372341524,1752603039640,-460.0,0.0002027,2]
[372341526,1752603039650,-460.0,0.0002027,2]
[372341528,1752603039660,-460.0,0.0002027,2]
[372341530,1752603039670,-460.0,0.0002027,2]
[372341532,1752603039682,-460.0,0.0002027,2]
[372341534,1752603039692,-460.0,0.0002027,2]
[372341536,1752603039701,-460.0,0.0002027,2]
[372341538,1752603039711,-460.0,0.0002027,2]
[372341540,1752603039720,-460.0,0.0002027,2]
[372341542,1752603039730,-460.0,0.0002027,2]
[372341544,1752603039739,-460.0,0.0002027,2]
[372341546,1752603039749,-460.0,0.0002027,2]
[372341548,1752603039758,-460.0,0.0002027,2]
[372341550,1752603039767,-571.72321069,0.0002027,2]
[372341552,1752603039777,-460.0,0.0002027,2]
[372341554,1752603039786,-460.0,0.0002027,2]
[372341556,1752603039797,-460.0,0.0002027,2]
[372341558,1752603039806,-460.0,0.0002027,2]
[372341560,1752603039815,-460.0,0.0002027,2]
[372341562,1752603039825,-460.0,0.0002027,2]
[372341564,1752603039834,-460.0,0.0002027,2]
[372341566,1752603039844,-460.0,0.0002027,2]
[372341568,1752603039853,-685.61,0.0002027,2]
[372341570,1752603039863,-460.0,0.0002027,2]
[372341572,1752603039872,-413.81511351,0.00020271,2]
[372341574,1752603039881,-460.0,0.00020271,2]
[372341576,1752603039891,-460.0,0.00020271,2]
[372341578,1752603039900,-460.0,0.00020271,2]
[372341580,1752603039909,-460.0,0.00020271,2]
[372341582,1752603039919,-460.0,0.00020271,2]
[372341584,1752603039928,-460.0,0.00020271,2]
[372341586,1752603039937,-466.66793965,0.00020271,2]
[372341588,1752603039947,-500.56947302,0.00020271,2]
[372341590,1752603039957,-162.30935537,0.00020271,2]
[372341592,1752603039967,-460.0,0.00020271,2]
[372341594,1752603039976,-460.0,0.00020271,2]
[372341596,1752603039986,-460.0,0.00020271,2]
[372341598,1752603039996,-460.0,0.00020271,2]
[372341601,1752603040006,-460.0,0.00020271,2]
[372341603,1752603040017,-460.0,0.00020271,2]
[372341605,1752603040027,-285.58004853,0.00020271,2]
[372341608,1752603040041,-174.41995147,0.00020271,2]
[372341610,1752603040051,-130.58004853,0.00020271,2]
[372341612,1752603040062,-329.41995147,0.00020271,2]
[372341614,1752603040072,-460.0,0.00020271,2]
[372341616,1752603040082,-464.32708438,0.00020271,2]
[372341618,1752603040091,-460.0,0.00020271,2]
[372341620,1752603040102,-460.0,0.00020271,2]
[372341623,1752603040112,-460.0,0.00020271,2]
[372341625,1752603040122,-460.0,0.00020271,2]
[372341627,1752603040132,-460.0,0.00020271,2]
[372341629,1752603040143,-460.0,0.00020271,2]
[372341630,1752603040152,-460.0,0.00020271,2]
[372341633,1752603040163,-460.0,0.00020271,2]
[372341635,1752603040172,-422.65840735,0.00020271,2]
[372341637,1752603040182,-460.0,0.00020271,2]
[372341639,1752603040192,-460.0,0.00020271,2]
[372341641,1752603040201,-460.0,0.00020271,2]
[372341643,1752603040211,-460.0,0.00020271,2]
[372341645,1752603040221,-460.0,0.00020271,2]
[372341648,1752603040231,-460.0,0.00020271,2]
[372341650,1752603040241,-460.0,0.00020271,2]
[372341652,1752603040250,-284.65942692,0.00020271,2]
[372341654,1752603040259,-460.0,0.00020271,2]
[372341656,1752603040268,-460.0,0.00020271,2]
[372341658,1752603040277,-460.0,0.00020271,2]
[372341660,1752603040286,-460.0,0.00020271,2]
[372341662,1752603040295,-460.0,0.00020271,2]
[372341664,1752603040303,-460.0,0.00020271,2]
[372341666,1752603040313,-460.0,0.00020272,2]
[372341668,1752603040323,-207.4,0.00020532,2]
[372341670,1752603040332,-460.0,0.00020543,2]
[372341671,1752603040342,-737.21,0.00020543,2]
[372341674,1752603040352,-460.0,0.00020543,2]
[372341676,1752603040361,-460.0,0.00020543,2]
[372341678,1752603040370,-460.0,0.00020543,2]
[372341680,1752603040380,-460.0,0.00020543,2]
[372341682,1752603040390,-460.0,0.00020543,2]
[372341684,1752603040399,-460.0,0.00020543,2]
[372341686,1752603040407,-460.0,0.00020543,2]
[372341688,1752603040416,-466.63132801,0.00020543,2]
[372341690,1752603040426,-460.0,0.00020543,2]
[372341692,1752603040435,-463.08,0.00020543,2]
[372341694,1752603040444,-460.0,0.00020543,2]
[372341696,1752603040453,-460.0,0.00020543,2]
[372341698,1752603040462,-543.46919832,0.00020543,2]
[372341700,1752603040471,-205.3,0.00020543,2]
[372341702,1752603040481,-460.0,0.00020543,2]
[372341704,1752603040490,-460.0,0.00020543,2]
[372341706,1752603040503,-460.0,0.00020543,2]
[372341708,1752603040512,-460.0,0.00020543,2]
[372341710,1752603040521,-460.0,0.00020543,2]
[372341712,1752603040530,-465.49201461,0.00020543,2]
[372341714,1752603040540,-460.0,0.00020543,2]
[372341716,1752603040549,-460.0,0.00020543,2]
[372341718,1752603040558,-460.0,0.00020543,2]
[372341720,1752603040566,-605.92,0.00020543,2]
[372341722,1752603040576,-460.0,0.00020543,2]
[372341724,1752603040585,-460.0,0.00020543,2]
[372341726,1752603040593,-460.0,0.00020544,2]
[372341728,1752603040602,-460.0,0.00020544,2]
[372341730,1752603040610,-460.0,0.00020544,2]
[372341731,1752603040619,-460.0,0.00020544,2]
[372341733,1752603040627,-460.0,0.00020544,2]
[372341735,1752603040637,-460.0,0.00020544,2]
[372341737,1752603040645,-460.0,0.00020544,2]
[372341739,1752603040655,-460.0,0.00020544,2]
[372341741,1752603040664,-460.0,0.00020544,2]
[372341743,1752603040673,-460.0,0.00020544,2]
[372341745,1752603040682,-460.0,0.00020544,2]
[372341747,1752603040691,-460.0,0.00020544,2]
[372341749,1752603040700,-304.71,0.00020544,2]
[372341752,1752603040709,-460.0,0.00020544,2]
[372341754,1752603040719,-460.0,0.00020544,2]
[372341756,1752603040727,-460.0,0.00020544,2]
[372341758,1752603040736,-460.0,0.00020544,2]
[372341760,1752603040745,-463.14535527,0.00020544,2]
[372341762,1752603040753,-460.0,0.00020544,2]
[372341764,1752603040762,-460.0,0.00020544,2]
[372341766,1752603040771,-460.0,0.00020544,2]
[372341768,1752603040780,-460.0,0.00020544,2]